bitfinex/quotes_ETHUSD_20260126
["timestamp","ask_amount","ask_price","bid_price","bid_amount"]
[1769442578193,14.02363213,2900.9,2899.0,13.94928973]
[1769442578727,0.86261194,2900.9,2899.3,13.94919259]
[1769442579026,0.0008,2900.9,2899.7,13.08692802]
[1769442579232,0.0008,2900.9,2899.9,0.02380871]
[1769442579415,0.0008,2900.9,2899.7,13.08692802]
[1769442580120,0.0008,2900.9,2899.8,13.11073673]
[1769442580709,0.0008,2900.9,2900.0,0.02380871]
[1769442581028,0.0008,2900.9,2900.0,1.42347388]
[1769442581322,0.0008,2900.9,2900.0,1.39966517]
[1769442582590,0.0008,2900.9,2900.0,15.34865692]
[1769442582795,0.0008,2900.9,2900.1,13.08692802]
[1769442582990,4.1699782,2901.8,2900.3,13.11073673]
[1769442582991,0.86233862,2901.8,2900.3,13.11073673]
[1769442583195,0.0008,2901.8,2900.4,14.39800169]
[1769442583634,0.001,2900.7,2900.4,14.39800169]
[1769442583806,0.0008,2901.8,2900.4,14.39800169]
[1769442584208,0.0008,2901.8,2900.5,13.11073673]
[1769442584424,0.0008,2901.8,2900.4,1.31107367]
[1769442584611,0.0008,2901.8,2900.1,13.08692802]
[1769442584935,0.0008,2901.8,2900.3,13.94890746]
[1769442585230,0.0008,2901.8,2900.3,13.08692802]
[1769442585431,0.0008,2901.8,2900.5,13.08692802]
[1769442585796,0.0008,2901.8,2900.2,0.86200471]
[1769442585991,0.0008,2901.8,2900.3,1.39727414]
[1769442586235,0.0008,2901.8,2900.9,0.02380871]
[1769442586534,14.02315019,2902.5,2900.7,13.11073673]
[1769442587029,14.02316263,2902.5,2900.7,13.08692802]
[1769442587231,14.02316263,2902.5,2900.3,14.48420216]
[1769442587432,13.16102019,2902.2,2900.6,13.11073673]
[1769442587931,13.16102019,2902.2,2900.6,13.08692802]
[1769442588436,13.16102019,2902.2,2900.4,2.3365581]
[1769442588437,13.16102019,2902.2,2900.4,2.33654471]
[1769442588734,13.16102019,2902.2,2900.4,2.33655802]
[1769442589100,13.16102019,2902.2,2900.6,0.02380871]
[1769442589295,0.86138579,2902.3,2900.7,0.86186093]
[1769442589503,0.86137436,2902.4,2900.8,12.96333507]
[1769442589711,0.86137436,2902.4,2900.8,12.93952636]
[1769442590004,1.58414627,2902.5,2900.8,12.93952636]
[1769442590229,0.86214627,2902.5,2900.8,12.93952636]
[1769442590406,0.86214627,2902.5,2900.9,1.32014222]
[1769442590727,0.0008,2902.5,2901.2,12.96333507]
[1769442591440,0.0008,2902.5,2900.9,2.15812537]
[1769442591728,0.0008,2902.5,2900.9,2.15811538]
[1769442591896,0.0008,2902.5,2900.9,1.29633351]
[1769442592101,13.74189652,2902.5,2901.0,1.51214799]
[1769442592417,13.74189652,2902.5,2900.4,12.93952636]
[1769442592624,13.74189652,2902.5,2900.5,0.86191569]
[1769442593014,13.74189652,2902.5,2900.6,0.86189049]
[1769442593236,13.74189652,2902.5,2900.7,0.88564896]
[1769442593455,0.86138579,2902.3,2900.7,13.80136661]
[1769442593648,0.86138579,2902.3,2900.8,1.38013666]
[1769442593826,0.86138579,2902.3,2900.8,12.93952636]
[1769442594176,0.722,2902.4,2901.0,12.93952636]
[1769442594541,0.0008,2902.5,2901.5,0.02380871]
[1769442594768,0.0008,2902.5,2901.7,12.96333507]
[1769442594927,0.0008,2903.4,2902.0,12.93952636]
[1769442595122,0.86186266,2903.4,2902.1,14.233479]
[1769442595345,0.0008,2903.4,2902.1,1.29395264]
[1769442595550,0.0008,2903.4,2902.1,0.86143095]
[1769442595761,0.0008,2903.4,2902.1,12.93952636]
[1769442595942,0.0008,2903.4,2902.1,13.80096957]
[1769442596341,0.0008,2903.4,2902.1,13.80096203]
[1769442596532,0.0008,2903.4,2902.1,0.86144036]
[1769442596927,0.0008,2903.4,2902.2,13.3702572]
[1769442597450,0.0008,2903.4,2902.2,0.43073084]
[1769442597636,0.0008,2903.4,2902.2,13.80091299]
[1769442597956,0.0008,2903.4,2902.2,12.93952636]
[1769442598456,0.0008,2903.4,2902.2,13.8009408]
[1769442598659,0.0008,2903.4,2902.2,12.93952636]
[1769442598824,0.0008,2903.4,2902.2,0.86140325]
[1769442599153,0.0008,2903.4,2902.0,3.44584614]
[1769442599154,0.0008,2903.4,2902.1,0.86144504]
[1769442599331,0.0008,2903.4,2902.2,1.38009714]
[1769442599528,13.74189652,2903.4,2901.5,12.93952636]
[1769442599732,13.74189652,2903.4,2901.7,0.86156103]
[1769442599932,13.74189652,2903.4,2901.7,0.86155626]
[1769442600157,13.74189652,2903.4,2901.6,12.93952636]
[1769442600350,13.74189652,2903.4,2901.7,0.8615542]
[1769442600684,13.76490523,2903.3,2901.8,1.38010806]
[1769442600891,13.76490523,2903.3,2901.2,12.93952636]
[1769442600892,0.722,2903.2,2901.2,12.93952636]
[1769442601188,0.0008,2903.4,2902.2,0.86138684]
[1769442601367,0.0008,2903.4,2902.2,13.8009132]
[1769442601546,0.0008,2904.3,2902.3,12.96333507]
[1769442601752,0.0008,2904.3,2902.5,12.96333507]
[1769442601959,0.0008,2905.2,2903.2,12.93952636]
[1769442602140,0.0008,2905.2,2903.3,0.42783018]
[1769442602471,0.0008,2905.2,2903.4,12.93952636]
[1769442602657,0.86132664,2905.2,2903.4,12.93952636]
[1769442602845,0.4303334,2905.1,2903.5,1.29395264]
[1769442603271,0.0008,2905.2,2903.5,14.233479]
[1769442603576,0.0008,2905.2,2903.6,13.80052649]
[1769442604245,13.74189652,2905.2,2903.5,1.29395264]
[1769442604448,13.74189652,2905.2,2903.1,13.80067149]
[1769442604656,13.74189652,2905.2,2903.1,12.93952636]
[1769442604889,13.74189652,2905.2,2903.2,0.86110068]
[1769442605181,0.0008,2905.2,2903.5,0.02380871]
[1769442605344,0.0008,2905.2,2903.5,1.29871438]
[1769442605677,0.0008,2905.2,2903.5,15.09926854]
[1769442605899,0.0008,2905.2,2903.5,1.29871438]
[1769442606049,0.0008,2905.2,2903.5,0.86101961]
[1769442606245,0.0008,2905.2,2903.5,13.80054597]
[1769442606550,0.0008,2905.2,2903.5,13.80055442]
[1769442606750,13.74189652,2905.2,2903.0,12.96333507]
[1769442606964,13.74189652,2905.2,2903.1,0.86113916]
[1769442607165,13.74189652,2905.2,2903.3,0.86108456]
[1769442607166,13.74109652,2905.1,2903.3,0.86108456]
[1769442607374,0.0008,2905.2,2903.6,12.96333507]
[1769442607575,0.0008,2905.2,2903.7,0.86097048]
[1769442607775,0.0008,2905.2,2903.8,0.02380871]
[1769442608370,0.0008,2905.2,2903.6,13.82433237]
[1769442608582,0.0008,2905.2,2903.7,1.38243324]
[1769442609177,13.74189652,2905.2,2903.7,1.38243324]
[1769442609368,13.74189652,2905.2,2903.1,13.80065194]
[1769442609369,0.001,2905.0,2903.1,13.80065194]
[1769442609567,13.74209652,2905.0,2903.1,13.80065194]
[1769442609856,13.74209652,2905.0,2903.1,13.82446065]
[1769442610591,13.74209652,2905.0,2903.1,12.96333507]
[1769442610797,13.74209652,2905.0,2903.3,0.02380871]
[1769442611011,20.47884795,2904.7,2902.6,13.80082125]
[1769442611302,13.74109652,2904.6,2902.6,0.86128901]
[1769442611501,13.74109652,2904.6,2902.8,0.86123556]
[1769442611665,13.74109652,2904.6,2902.4,12.93952636]
[1769442611666,14.60182986,2904.5,2902.4,12.93952636]
[1769442611854,14.60182986,2904.5,2902.5,1.38246989]
[1769442612447,14.60182986,2904.5,2902.2,3.44566139]
[1769442612653,14.60182986,2904.5,2902.3,0.02380871]
[1769442612855,13.74109652,2904.4,2902.1,0.88525142]
[1769442613049,13.74109652,2904.4,2901.7,0.02380871]
[1769442613269,13.74109652,2903.9,2901.7,0.02380871]
[1769442613478,13.74109652,2903.8,2901.8,1.29633351]
[1769442613666,14.602067,2903.7,2901.8,1.29633351]
[1769442614181,14.602067,2903.7,2901.6,0.02380871]
[1769442614775,14.602067,2903.7,2901.8,0.88531584]
[1769442615091,13.74109652,2903.7,2901.5,13.80112094]
[1769442615274,13.74109652,2903.7,2901.5,12.93952636]
[1769442615460,13.74109652,2903.7,2901.5,13.80114666]
[1769442615652,0.86100013,2903.6,2901.6,2.24170333]
[1769442615876,13.74109652,2903.5,2901.6,2.24170333]
[1769442616097,13.74109652,2903.5,2901.6,1.38011467]
[1769442616381,13.74109652,2903.2,2901.6,1.38011467]
[1769442616587,13.74109652,2903.2,2901.3,0.86167457]
[1769442616912,0.722,2903.3,2901.6,0.02380871]
[1769442617083,14.46309652,2903.3,2901.4,0.02380871]
[1769442617259,14.46309652,2903.3,2901.4,0.86164939]
[1769442617579,14.46309652,2903.3,2901.4,0.8616505]
[1769442617970,0.86111876,2903.2,2901.2,13.80123875]
[1769442618170,14.60221528,2903.2,2901.2,12.93952636]
[1769442618357,14.60221528,2903.2,2900.8,0.002]
[1769442618358,14.62602399,2903.2,2900.8,0.002]
[1769442618553,14.62602399,2903.2,2901.0,0.86176682]
[1769442618554,14.60221528,2903.2,2901.0,0.86176682]
[1769442618753,0.722,2903.1,2901.5,13.5307876]
[1769442619076,0.722,2903.1,2901.6,1.35545963]
[1769442619251,0.722,2903.1,2901.4,0.02380871]
[1769442620106,12.66272522,2903.0,2900.8,0.002]
[1769442620386,12.66272522,2903.0,2901.1,0.86172568]
[1769442620587,12.66272522,2903.0,2901.1,0.86173945]
[1769442620783,12.66272522,2903.0,2900.9,13.5307876]
[1769442620986,12.66272522,2902.8,2900.8,0.002]
[1769442621364,12.68653393,2902.8,2900.8,0.002]
[1769442621575,12.66272522,2902.8,2900.8,13.5327876]
[1769442621890,14.24589268,2903.1,2901.1,13.5307876]
[1769442622064,14.24589268,2903.1,2901.6,0.002]
[1769442622264,3.44412385,2903.5,2901.6,13.5327876]
[1769442623287,16.10684907,2903.5,2901.6,13.5327876]
[1769442623688,12.66272522,2903.4,2901.6,17.3127876]
[1769442624095,0.8610891,2903.3,2901.6,18.17437708]
[1769442624306,16.10708164,2903.4,2901.7,19.47286479]
[1769442624307,13.52378889,2903.4,2901.7,19.47286479]
[1769442624465,13.52379114,2903.4,2901.7,15.69286479]
[1769442624667,0.86105021,2903.5,2901.7,15.69286479]
[1769442625570,12.66272522,2903.4,2901.7,2.16207719]
[1769442625778,12.66272522,2903.4,2901.6,0.002]
[1769442626364,13.52381432,2903.3,2901.6,0.002]
[1769442626668,13.54762303,2903.3,2901.6,0.002]
[1769442627396,13.52381432,2903.3,2901.6,0.002]
[1769442627566,13.52381432,2903.3,2901.6,13.5327876]
[1769442627765,13.52381432,2903.3,2901.7,1.35327876]
[1769442628396,13.52381432,2903.3,2901.6,0.002]
[1769442629203,0.86109493,2903.3,2901.6,13.5327876]
[1769442629918,0.86108039,2903.4,2901.8,13.5307876]
[1769442630063,0.86100013,2903.6,2901.9,13.5307876]
[1769442630267,1.5829908,2903.7,2901.9,13.5307876]
[1769442630576,1.5829908,2903.7,2902.0,14.88386636]
[1769442631309,1.5829908,2903.7,2902.1,14.39223276]
[1769442631477,1.5829908,2903.7,2902.1,13.5307876]
[1769442631678,14.24571602,2903.7,2902.0,1.35307876]
[1769442631921,14.24571602,2903.7,2901.8,0.861516]
[1769442632105,14.24571602,2903.7,2901.7,18.17233378]
[1769442632306,14.24571602,2903.7,2901.7,17.3107876]
[1769442632479,14.24571602,2903.7,2901.7,18.17234596]
[1769442632680,14.24571602,2903.7,2901.7,17.3107876]
[1769442632878,1.5829908,2903.7,2901.9,14.39227534]
[1769442633179,1.5829908,2903.7,2902.0,14.41606495]
[1769442633180,0.722,2903.7,2902.0,14.41606495]
[1769442633398,12.66272522,2904.1,2902.0,14.41606495]
[1769442633599,13.52359557,2904.1,2902.0,14.41606495]
[1769442633784,0.86076298,2904.4,2902.5,13.5307876]
[1769442634005,0.86076298,2904.4,2902.7,13.5307876]
[1769442634210,13.5234882,2904.4,2902.7,13.5307876]
[1769442634439,13.5234882,2904.4,2902.6,1.35545963]
[1769442634719,13.5234882,2904.4,2902.4,13.5307876]
[1769442635213,13.5234882,2904.4,2902.5,3.78]
[1769442635426,12.68653393,2904.2,2902.1,3.78]
[1769442635580,12.68653393,2904.2,2902.1,4.64144206]
[1769442635776,12.66272522,2904.1,2902.2,16.20940174]
[1769442636024,12.66272522,2904.1,2902.3,13.5307876]
[1769442636576,0.86076298,2904.4,2902.5,14.39210314]
[1769442637297,14.24547915,2904.5,2902.7,13.5307876]
[1769442637498,0.86064445,2904.8,2902.9,13.5307876]
[1769442637812,13.09304745,2904.7,2903.0,1.4392025]
[1769442638007,13.09304745,2904.7,2902.7,14.39204014]
[1769442638238,13.09304745,2904.7,2902.7,13.5307876]
[1769442638417,13.09304745,2904.7,2902.7,14.39204858]
[1769442638708,13.09304745,2904.7,2902.7,13.5307876]
[1769442638900,0.722,2904.6,2902.7,13.5307876]
[1769442639210,0.722,2904.6,2902.8,1.35307876]
[1769442639211,12.66272522,2904.5,2902.8,1.35307876]
[1769442639619,12.66272522,2904.5,2902.4,0.86134446]
[1769442639620,13.5234882,2904.4,2902.4,0.86134446]
[1769442639802,13.5234882,2904.4,2902.6,0.8612846]
[1769442639984,13.5234882,2904.4,2902.7,0.86126255]
[1769442640188,13.5234882,2904.4,2902.6,13.5307876]
[1769442640385,0.72011323,2904.3,2902.7,1.43920942]
[1769442640590,0.72011323,2904.3,2902.7,2.30046701]
[1769442640904,0.72011323,2904.3,2902.7,1.43920942]
[1769442641090,0.72011323,2904.3,2902.7,2.30046583]
[1769442641423,0.72011323,2904.3,2902.7,2.30047522]
[1769442641592,1.29114448,2904.2,2902.8,1.58312628]
[1769442641788,0.86082225,2904.2,2902.8,1.58312628]
[1769442642039,0.86067407,2904.7,2902.8,15.11391388]
[1769442642239,0.86067407,2904.7,2902.9,13.55459631]
[1769442642417,0.86160324,2905.0,2903.2,13.5307876]
[1769442642622,0.86160324,2905.0,2903.4,13.5307876]
[1769442643239,0.86160577,2905.0,2903.5,14.2527876]
[1769442643538,0.86160577,2905.0,2903.3,1.35545963]
[1769442643539,0.001,2905.0,2903.3,1.35545963]
[1769442643719,12.66372522,2905.0,2903.3,1.35545963]
[1769442644607,12.66372522,2905.0,2903.3,2.21654387]
[1769442644810,12.66372522,2905.0,2903.4,0.29623526]
[1769442645043,12.66372522,2905.0,2903.4,0.32004397]
[1769442645244,0.001,2905.0,2903.5,0.8610285]
[1769442645452,0.001,2905.0,2903.5,14.39181702]
[1769442645611,0.43146804,2905.0,2903.6,1.4711861]
[1769442645811,0.001,2905.0,2903.6,1.4711861]
[1769442647347,0.001,2905.0,2903.6,2.33218438]
[1769442647546,0.001,2905.0,2903.6,14.41559459]
[1769442647920,0.001,2905.0,2903.6,14.39178588]
[1769442648116,0.001,2905.0,2903.8,13.55459631]
[1769442648439,0.001,2905.0,2904.2,13.55459631]
[1769442648765,0.0008,2905.2,2904.2,13.5307876]
[1769442648965,0.86036782,2905.8,2904.3,1.35307876]
[1769442649256,12.66031716,2905.8,2904.3,1.37688747]
[1769442649460,12.66031716,2905.8,2904.3,1.35307876]
[1769442649664,12.66031716,2905.8,2903.8,13.18838009]
[1769442649835,12.66031716,2905.6,2903.8,14.0493104]
[1769442650034,12.66031716,2905.6,2903.8,13.16457138]
[1769442650536,12.66031716,2905.6,2903.8,14.02550573]
[1769442650765,12.66031716,2905.6,2903.8,14.04931444]
[1769442650962,12.66031716,2905.6,2904.0,0.02380871]
[1769442651258,0.86037787,2905.7,2904.3,13.18838009]
[1769442651462,1.221575,2905.9,2904.5,13.18838009]
[1769442651760,1.221575,2905.9,2904.5,14.04908704]
[1769442651967,1.221575,2905.9,2904.9,0.02380871]
[1769442652263,1.221575,2905.9,2904.9,13.91038009]
[1769442652463,1.221575,2905.9,2905.0,1.39103801]
[1769442653667,3.44136961,2906.5,2905.0,1.39103801]
[1769442653668,0.0008,2906.5,2905.2,0.02380871]
[1769442653968,0.0008,2906.5,2905.1,13.16457138]
[1769442654370,0.0008,2906.5,2905.2,14.04888574]
[1769442654569,0.02380871,2907.6,2905.2,14.04888574]
[1769442654570,12.66031716,2907.5,2905.6,0.02380871]
[1769442654771,3.43959834,2907.4,2905.6,13.18838009]
[1769442655148,0.85974546,2907.9,2906.1,13.16457138]
[1769442655339,0.85974546,2907.9,2906.5,0.02380871]
[1769442655544,1.35972278,2908.0,2906.3,13.18838009]
[1769442655745,0.5,2908.0,2906.7,0.02380871]
[1769442655961,1.35970058,2908.0,2906.5,13.18838009]
[1769442656161,0.5,2908.0,2906.5,13.16457138]
[1769442656345,1.35970648,2908.0,2906.5,13.16457138]
[1769442656862,12.68412587,2907.9,2905.5,13.16457138]
[1769442657077,12.66031716,2907.4,2905.3,1.74910295]
[1769442657239,0.721,2907.3,2905.6,14.02495175]
[1769442657444,13.14016676,2907.9,2905.6,16.60616376]
[1769442657646,12.66031716,2907.7,2905.6,14.02495794]
[1769442657863,1.58081565,2907.6,2905.6,14.02497015]
[1769442658063,16.09957978,2907.7,2905.6,14.04877886]
[1769442658064,14.24110502,2907.7,2905.6,14.04877886]
[1769442658375,0.67058586,2907.6,2905.8,13.16457138]
[1769442658576,0.721,2907.7,2906.2,13.18838009]
[1769442659278,0.5,2908.0,2906.2,13.18838009]
[1769442659476,0.5,2908.0,2906.8,13.16457138]
[1769442659976,0.6864314,2908.9,2907.1,13.18838009]
[1769442660278,0.6864314,2908.9,2906.2,0.02380871]
[1769442660279,13.37055727,2908.9,2906.2,0.02380871]
[1769442660476,13.37055727,2908.9,2906.4,0.88395886]
[1769442660477,12.66031716,2908.8,2906.4,0.88395886]
[1769442660790,12.66031716,2908.8,2906.4,13.16457138]
[1769442661077,12.66031716,2908.3,2906.0,14.04864895]
[1769442661376,12.66031716,2908.8,2906.7,0.02380871]
[1769442661575,13.38131716,2908.7,2906.4,13.18838009]
[1769442661778,12.66031716,2908.5,2906.4,14.04852974]
[1769442661953,12.66031716,2908.5,2906.6,0.02380871]
[1769442662167,0.85952004,2908.6,2906.8,0.02380871]
[1769442662363,13.5198372,2908.6,2906.6,0.02380871]
[1769442662691,12.66031716,2908.5,2906.6,1.34502759]
[1769442663193,0.721,2908.4,2906.6,1.32121888]
[1769442663868,13.51992586,2908.3,2906.6,1.32121888]
[1769442664068,0.8596087,2908.3,2906.9,0.02380871]
[1769442664291,0.85949049,2908.7,2907.1,0.02380871]
[1769442664490,4.15896197,2908.8,2907.3,0.02380871]
[1769442664491,0.8594787,2908.8,2907.3,0.02380871]
[1769442665198,0.8594787,2908.8,2907.1,0.02380871]
[1769442665406,0.42972076,2908.7,2906.9,0.02380871]
[1769442665698,13.09003792,2908.7,2906.6,13.16457138]
[1769442665918,12.66031716,2908.5,2906.5,0.02380871]
[1769442666100,12.66031716,2908.5,2906.5,0.88394865]
[1769442666300,0.85952004,2908.6,2907.1,0.02380871]
[1769442666487,0.85951089,2908.7,2907.3,0.02380871]
[1769442666671,1.28925803,2908.7,2907.3,1.34502759]
[1769442667017,13.94957519,2908.7,2906.3,0.02380871]
[1769442667309,12.66031716,2908.5,2905.8,0.02380871]
[1769442667612,12.66031716,2908.5,2905.7,13.16457138]
[1769442667613,12.66031716,2907.9,2905.7,13.16457138]
[1769442667818,13.52013281,2907.6,2905.7,13.16457138]
[1769442668024,13.52013281,2907.6,2905.3,0.02380871]
[1769442668185,12.66031716,2907.4,2905.4,1.34264672]
[1769442668394,12.66031716,2907.4,2905.7,0.02380871]
[1769442668719,12.66031716,2907.4,2905.5,0.88424365]
[1769442668874,12.66031716,2907.4,2905.6,0.86040573]
[1769442669070,12.66031716,2907.3,2905.4,1.31883801]
[1769442669370,13.00628482,2907.3,2905.5,0.02380871]
[1769442669988,13.52025111,2907.2,2905.3,0.02380871]
[1769442670274,13.52025111,2907.2,2904.9,0.86059123]
[1769442670513,13.52025111,2907.2,2905.0,0.86058469]
[1769442670713,12.66031716,2907.0,2904.8,0.86062327]
[1769442670876,12.66031716,2906.8,2904.9,0.02380871]
[1769442671077,12.66031716,2906.8,2905.0,0.86057886]
[1769442671277,12.66031716,2906.8,2905.0,0.86057817]
[1769442671472,12.66031716,2906.8,2904.7,0.02380871]
[1769442671673,12.66031716,2906.6,2904.8,1.40490656]
[1769442671909,12.66031716,2906.6,2904.5,0.86073334]
[1769442671910,13.52045822,2906.5,2904.5,0.86073334]
[1769442672141,13.52045822,2906.5,2904.8,0.02380871]
[1769442672425,13.52045822,2906.5,2905.0,0.02380871]
[1769442672426,0.721,2906.4,2905.0,0.02380871]
[1769442672722,0.721,2906.4,2904.9,0.02380871]
[1769442673512,0.721,2906.4,2904.4,3.46684316]
[1769442673513,13.38131716,2906.4,2904.4,0.86074757]
[1769442673723,1.42414582,2906.3,2904.8,0.02380871]
[1769442674021,0.86020025,2906.3,2904.8,0.01380871]
[1769442674595,1.58118581,2906.4,2904.8,0.87444862]
[1769442674924,0.86008187,2906.7,2905.0,0.02380871]
[1769442675097,0.721,2906.6,2905.0,0.02380871]
[1769442675906,0.721,2906.6,2905.0,0.01380871]
[1769442676127,0.86014106,2906.5,2905.1,0.37938087]
[1769442676439,0.86014106,2906.5,2905.1,0.36938087]
[1769442677614,13.52045822,2906.5,2905.1,0.36938087]
[1769442677817,13.52045822,2906.5,2904.8,0.002]
[1769442678424,13.23504727,2906.2,2904.8,0.002]
[1769442679324,13.23504727,2905.6,2904.0,0.002]
[1769442679514,13.23504727,2905.4,2904.0,0.002]
[1769442680097,14.0955436,2905.3,2904.0,0.002]
[1769442680298,0.86048173,2905.4,2904.0,0.002]
[1769442681227,0.721,2905.6,2904.1,0.02380871]
[1769442681421,0.721,2905.6,2904.2,1.33210643]
[1769442681726,3.44060276,2906.5,2904.7,0.02380871]
[1769442682029,13.23504727,2906.6,2904.7,0.02380871]
[1769442682229,14.81616988,2906.6,2904.9,0.02380871]
[1769442682405,14.81616988,2906.6,2904.7,16.76164211]
[1769442682406,14.81616988,2906.6,2904.7,13.2952556]
[1769442682619,15.06070885,2906.5,2904.8,1.32952556]
[1769442682800,15.06070885,2906.5,2904.7,0.88448053]
[1769442683126,1.82566158,2906.5,2904.7,14.15592742]
[1769442683359,1.58112261,2906.6,2904.7,14.15592742]
[1769442683522,14.81616988,2906.6,2904.7,13.2952556]
[1769442683698,14.81616988,2906.6,2904.7,14.15591253]
[1769442684498,14.81616988,2906.6,2904.7,13.2952556]
[1769442684708,14.81616988,2906.6,2904.7,13.31906431]
[1769442684907,1.82566158,2906.5,2904.8,1.70990643]
[1769442685139,15.06070885,2906.5,2904.8,1.70990643]
[1769442685534,13.23504727,2906.2,2904.2,1.33210643]
[1769442685722,13.23504727,2906.2,2904.1,0.86084966]
[1769442685927,13.23504727,2906.2,2904.1,0.86083722]
[1769442686123,1.82566158,2906.5,2904.6,14.15594193]
[1769442686339,2.6858188,2906.5,2904.7,14.17972375]
[1769442686528,1.58113356,2906.6,2904.7,14.17972375]
[1769442686710,14.81618083,2906.6,2904.6,0.86068177]
[1769442686908,14.81618083,2906.6,2904.6,0.86068451]
[1769442687474,14.81618083,2906.6,2904.5,0.8607076]
[1769442687770,14.81618083,2906.6,2904.6,0.86070364]
[1769442688063,1.82804354,2906.5,2904.6,0.86070364]
[1769442688491,2.68820433,2906.5,2904.6,14.15595924]
[1769442688638,0.86016079,2906.5,2904.7,13.31906431]
[1769442688834,0.02380871,2906.3,2904.2,13.2972556]
[1769442689076,13.23504727,2906.2,2904.2,13.2972556]
[1769442689273,13.23504727,2905.6,2904.2,0.002]
[1769442689436,13.23504727,2905.4,2904.2,0.002]
[1769442690455,0.86049633,2905.3,2904.2,0.002]
[1769442694062,3.44105024,2906.1,2904.2,13.2972556]
[1769442694264,0.721,2906.2,2904.2,13.2972556]
[1769442694463,0.721,2906.2,2904.3,14.62498116]
[1769442694765,0.721,2906.2,2904.5,13.2952556]
[1769442694766,1.58123902,2906.2,2904.5,13.2952556]
[1769442695266,14.840095,2906.2,2904.3,1.32972556]
[1769442695469,13.23504727,2905.9,2904.2,0.002]
[1769442695682,13.23504727,2905.7,2904.2,0.002]
[1769442696758,0.86040748,2905.6,2904.2,0.002]
[1769442696934,0.721,2905.5,2904.2,0.002]
[1769442697137,13.95604727,2905.5,2904.2,0.002]
[1769442697434,1.48402635,2905.4,2904.2,0.002]
[1769442697867,1.48402635,2905.4,2903.1,13.2952556]
[1769442697868,13.25885598,2905.0,2903.1,13.2952556]
[1769442698067,13.25885598,2904.5,2902.8,0.002]
[1769442698382,0.721,2904.4,2902.8,0.002]
[1769442698583,13.95604727,2904.4,2902.8,0.002]
[1769442698865,0.86082225,2904.2,2902.8,1.33192556]
[1769442699266,14.11967823,2904.2,2902.8,1.33192556]
[1769442699470,14.11967823,2904.2,2902.8,0.002]
[1769442700744,14.09595845,2903.9,2902.5,0.002]
[1769442700945,6.7140707,2903.6,2902.5,0.002]
[1769442701147,13.25885598,2903.5,2901.6,0.86357509]
[1769442701486,6.7140707,2903.6,2901.7,14.15680324]
[1769442701654,0.67140707,2903.5,2901.8,1.41588032]
[1769442702045,0.721,2903.4,2901.9,13.2952556]
[1769442702257,0.721,2903.6,2902.2,14.15666277]
[1769442702457,0.721,2903.6,2902.2,13.2952556]
[1769442702899,0.721,2903.6,2902.2,14.15666783]
[1769442703195,3.44375516,2903.9,2902.3,1.76024439]
[1769442703396,0.721,2903.7,2902.3,1.76024439]
[1769442704395,13.95604727,2903.7,2901.8,2.27740159]
[1769442704594,13.95604727,2903.7,2901.8,1.41588032]
[1769442704793,13.97985598,2903.7,2901.8,1.41588032]
[1769442704990,14.0960474,2903.6,2901.8,1.41588032]
[1769442705298,13.25885598,2903.5,2901.7,0.86156317]
[1769442705497,0.86100013,2903.6,2901.8,14.15678586]
[1769442705682,0.721,2903.4,2901.8,14.15678586]
[1769442705857,0.722,2903.6,2902.0,13.2952556]
[1769442706058,0.86082225,2904.2,2902.0,13.2952556]
[1769442706280,0.86082225,2904.2,2901.9,0.02380871]
[1769442706281,1.25217393,2904.1,2902.2,13.2952556]
[1769442707201,0.53017393,2904.1,2902.2,13.2952556]
[1769442707400,0.86082225,2904.2,2902.4,13.31906431]
[1769442707607,14.09586952,2904.2,2902.2,0.86140188]
[1769442707802,14.09586952,2904.2,2902.2,14.15665748]
[1769442708005,14.09586952,2904.2,2902.3,1.54885639]
[1769442708006,1.48402635,2904.1,2902.3,1.54885639]
[1769442708170,13.23504727,2904.0,2902.3,1.54885639]
[1769442708373,13.23504727,2904.0,2902.0,0.86145822]
[1769442708573,13.23504727,2904.0,2901.7,13.84416845]
[1769442708802,13.23504727,2904.0,2901.8,0.86151685]
[1769442709009,12.69243151,2903.7,2901.7,13.84416845]
[1769442709208,14.4120595,2903.6,2901.8,1.47077446]
[1769442709504,13.5534613,2903.5,2901.8,1.47077446]
[1769442710310,13.5534613,2903.5,2901.8,2.33230745]
[1769442710472,0.99762799,2903.6,2901.8,16.20028461]
[1769442710677,0.722,2903.9,2902.3,13.84416845]
[1769442710871,1.58282225,2904.2,2902.5,13.84416845]
[1769442711676,14.27525376,2904.2,2902.3,0.86138495]
[1769442712008,14.27525376,2904.2,2902.3,0.8613667]
[1769442712208,14.27525376,2904.2,2902.3,14.70553515]
[1769442712408,1.77422414,2904.1,2902.4,1.47055352]
[1769442713504,0.86088154,2904.0,2902.4,1.47055352]
[1769442713691,3.35707852,2904.1,2902.4,16.17606814]
[1769442713891,0.722,2904.1,2902.4,16.19987685]
[1769442714092,1.58285666,2904.1,2902.4,16.19987685]
[1769442714496,1.582863,2904.1,2902.4,16.17606814]
[1769442715006,0.86070371,2904.6,2902.4,16.19987685]
[1769442715211,1.69959501,2904.5,2902.8,13.84416845]
[1769442715714,14.27512354,2904.7,2902.9,13.84416845]
[1769442717292,14.27512354,2904.7,2902.7,0.86126059]
[1769442717498,14.27512354,2904.7,2902.7,0.8612456]
[1769442717701,13.55312354,2904.7,2902.7,14.70543554]
[1769442717906,0.722,2904.6,2902.7,14.70543554]
[1769442718114,1.22453469,2904.6,2902.9,13.84416845]
[1769442719904,1.22453469,2904.6,2903.0,0.86117809]
[1769442720217,1.58270647,2904.6,2903.0,0.86117809]
[1769442720520,1.58270647,2904.6,2902.9,14.70535572]
[1769442720716,1.58270647,2904.6,2902.9,13.84416845]
[1769442721082,0.722,2904.6,2902.9,14.7053545]
[1769442721588,12.69243151,2905.3,2902.9,14.7053545]
[1769442721886,1.26924315,2905.2,2903.6,13.84416845]
[1769442722096,0.722,2905.4,2903.6,13.84416845]
[1769442722825,13.41443151,2905.4,2903.3,0.86106974]
[1769442723041,13.41443151,2905.4,2903.4,14.70522448]
[1769442723329,0.722,2905.3,2903.5,0.02380871]
[1769442723514,0.86042676,2905.6,2903.6,15.31707177]
[1769442723886,1.58238256,2905.7,2904.1,13.84416845]
[1769442724327,1.58238256,2905.7,2903.6,15.31707177]
[1769442724493,12.71624022,2905.6,2903.7,0.86096819]
[1769442724913,12.69243151,2905.6,2903.9,0.86091026]
[1769442725113,1.42986228,2905.5,2903.9,0.86091026]
[1769442725426,2.15186228,2905.5,2903.9,0.86091026]
[1769442725718,2.15186228,2905.5,2903.9,14.70507871]
[1769442726017,0.722,2905.5,2903.9,14.70507871]
[1769442726514,1.58243829,2905.5,2903.9,14.70507871]
[1769442726815,0.722,2905.5,2903.9,14.70507871]
[1769442727628,3.44142285,2905.8,2903.7,0.86095253]
[1769442727629,13.41443151,2905.7,2903.7,0.86095253]